[Event "The Schackveckan 2023: Göteborg open"]
[Site "Göteborgs schackcentrum, Vegagatan 20, Gothenburg, Sweden"]
[Date "2023.08.12"]
[Round "6.1"]
[White "Ustianovich, Nazar"]
[Black "Hector, Jonny"]
[Result "1/2-1/2"]
[TimeControl "15 minutes + 5 seconds per move from move one (Round 1 - 4) / 90 minutes + 30 seconds per move from move one (Round 5 - 8)"]
[WhiteTitle "FM"]
[BlackTitle "GM"]
[WhiteFideId "14109778"]
[BlackFideId "1700090"]
[WhiteElo "2314"]
[BlackElo "2466"]

1. d4 {[%clk 01:28:05]} {[%emt 00:02:55]} d5 {[%clk 01:30:56]} {[%emt
00:00:03]} 2. Nf3 {[%clk 01:27:59]} {[%emt 00:00:37]} Nf6 {[%clk 01:31:20]}
{[%emt 00:00:05]} 3. c4 {[%clk 01:28:05]} {[%emt 00:00:25]} c6 {[%clk
01:31:45]} {[%emt 00:00:05]} 4. Nc3 {[%clk 01:24:00]} {[%emt 00:04:36]} dxc4
{[%clk 01:32:04]} {[%emt 00:00:10]} 5. a4 {[%clk 01:24:24]} {[%emt 00:00:06]}
Bf5 {[%clk 01:32:26]} {[%emt 00:00:07]} 6. Ne5 {[%clk 01:24:44]} {[%emt
00:00:11]} Nbd7 {[%clk 01:32:34]} {[%emt 00:00:21]} 7. Nxc4 {[%clk 01:25:09]}
{[%emt 00:00:06]} Qc7 {[%clk 01:32:54]} {[%emt 00:00:09]} 8. g3 {[%clk
01:25:34]} {[%emt 00:00:06]} e5 {[%clk 01:33:17]} {[%emt 00:00:07]} 9. dxe5
{[%clk 01:26:03]} {[%emt 00:00:02]} Nxe5 {[%clk 01:33:33]} {[%emt 00:00:13]} 10.
Bf4 {[%clk 01:26:30]} {[%emt 00:00:03]} Nfd7 {[%clk 01:33:02]} {[%emt
00:01:00]} 11. Bg2 {[%clk 01:25:47]} {[%emt 00:01:14]} Be7 {[%clk 01:30:36]}
{[%emt 00:02:56]} 12. Qd4 {[%clk 01:15:18]} {[%emt 00:11:00]} f6 {[%clk
01:29:36]} {[%emt 00:01:28]} 13. Rc1 {[%clk 00:53:22]} {[%emt 00:22:28]} Bc5
{[%clk 01:24:49]} {[%emt 00:05:15]} 14. Bxe5 {[%clk 00:53:23]} {[%emt
00:00:30]} fxe5 {[%clk 01:24:41]} {[%emt 00:00:37]} 15. Qh4 {[%clk 00:52:38]}
{[%emt 00:01:15]} Be7 {[%clk 01:19:16]} {[%emt 00:05:55]} 16. Qh5+ {[%clk
00:52:42]} {[%emt 00:00:28]} g6 {[%clk 01:15:31]} {[%emt 00:04:14]} 17. Qh6
{[%clk 00:51:43]} {[%emt 00:01:29]} Be6 {[%clk 01:12:57]} {[%emt 00:03:04]} 18.
Nd2 {[%clk 00:44:17]} {[%emt 00:07:56]} Nf6 {[%clk 01:09:27]} {[%emt 00:04:00]}
19. Nde4 {[%clk 00:40:52]} {[%emt 00:03:57]} O-O-O {[%clk 01:07:15]} {[%emt
00:02:40]} 20. Nxf6 {[%clk 00:38:39]} {[%emt 00:02:44]} Bxf6 {[%clk 01:07:22]}
{[%emt 00:00:21]} 21. Bh3 {[%clk 00:37:01]} {[%emt 00:02:09]} Qe7 {[%clk
01:03:03]} {[%emt 00:04:48]} 22. O-O {[%clk 00:35:54]} {[%emt 00:01:38]} Kb8
{[%clk 01:00:17]} {[%emt 00:03:16]} 23. Bxe6 {[%clk 00:36:22]} {[%emt
00:00:03]} Qxe6 {[%clk 01:00:22]} {[%emt 00:00:24]} 24. Ne4 {[%clk 00:25:18]}
{[%emt 00:11:35]} Be7 {[%clk 00:58:07]} {[%emt 00:02:44]} 25. Nc5 {[%clk
00:21:37]} {[%emt 00:04:12]} Qf5 {[%clk 00:49:35]} {[%emt 00:09:01]} 26. Qg7
{[%clk 00:20:53]} {[%emt 00:01:14]} Bxc5 {[%clk 00:44:13]} {[%emt 00:05:52]} 27.
Rxc5 {[%clk 00:21:20]} {[%emt 00:00:04]} Rhe8 {[%clk 00:44:24]} {[%emt
00:00:17]} 28. b4 {[%clk 00:15:57]} {[%emt 00:05:54]} Rd7 {[%clk 00:37:17]}
{[%emt 00:07:37]} 29. Qh6 {[%clk 00:16:23]} {[%emt 00:00:04]} Qe4 {[%clk
00:37:10]} {[%emt 00:00:35]} 30. Qh3 {[%clk 00:10:46]} {[%emt 00:06:10]} Ree7
{[%clk 00:31:16]} {[%emt 00:06:22]} 31. b5 {[%clk 00:10:35]} {[%emt 00:00:42]}
cxb5 {[%clk 00:30:00]} {[%emt 00:01:47]} 32. Rfc1 {[%clk 00:06:28]} {[%emt
00:04:37]} a6 {[%clk 00:29:53]} {[%emt 00:00:36]} 33. axb5 {[%clk 00:06:41]}
{[%emt 00:00:15]} axb5 {[%clk 00:29:32]} {[%emt 00:00:53]} 34. Qf1 {[%clk
00:02:30]} {[%emt 00:04:41]} Rc7 {[%clk 00:25:48]} {[%emt 00:04:13]} 35. Rxb5
{[%clk 00:02:31]} {[%emt 00:00:30]} Rxc1 {[%clk 00:25:43]} {[%emt 00:00:35]} 36.
Qxc1 {[%clk 00:02:59]} {[%emt 00:00:03]} Qxe2 {[%clk 00:25:44]} {[%emt
00:00:28]} 37. Qc5 {[%clk 00:02:33]} {[%emt 00:00:57]} Qd1+ {[%clk 00:24:52]}
{[%emt 00:01:20]} 38. Kg2 {[%clk 00:03:02]} {[%emt 00:00:02]} Qd7 {[%clk
00:24:52]} {[%emt 00:00:29]} 39. Ra5 {[%clk 00:02:55]} {[%emt 00:00:38]} Qc6+
{[%clk 00:25:03]} {[%emt 00:00:18]} 40. Qxc6 {[%clk 00:03:24]} {[%emt
00:00:03]} bxc6 {[%clk 00:25:09]} {[%emt 00:00:22]} 41. Kf3 {[%clk 00:03:46]}
{[%emt 00:00:08]} Kb7 {[%clk 00:24:33]} {[%emt 00:01:06]} 42. Ke4 {[%clk
00:04:08]} {[%emt 00:00:09]} Kb6 {[%clk 00:24:38]} {[%emt 00:00:25]} 43. Rxe5
{[%clk 00:03:51]} {[%emt 00:00:47]} Rd7 {[%clk 00:14:51]} {[%emt 00:10:16]} 44.
h4 {[%clk 00:03:15]} {[%emt 00:01:06]} c5 {[%clk 00:15:00]} {[%emt 00:00:21]}
45. h5 {[%clk 00:03:24]} {[%emt 00:00:22]} c4 {[%clk 00:15:03]} {[%emt
00:00:27]} 46. hxg6 {[%clk 00:03:46]} {[%emt 00:00:08]} hxg6 {[%clk 00:15:09]}
{[%emt 00:00:23]} 47. Re8 {[%clk 00:03:37]} {[%emt 00:00:40]} Kc5 {[%clk
00:14:26]} {[%emt 00:01:13]} 48. Rc8+ {[%clk 00:03:45]} {[%emt 00:00:23]} Kb4
{[%clk 00:14:49]} {[%emt 00:00:06]} 49. f4 {[%clk 00:03:00]} {[%emt 00:01:15]}
Rd1 {[%clk 00:10:55]} {[%emt 00:04:24]} 50. g4 {[%clk 00:03:03]} {[%emt
00:00:26]} c3 {[%clk 00:09:59]} {[%emt 00:01:27]} 51. Ke5 {[%clk 00:00:46]}
{[%emt 00:02:47]} Rf1 {[%clk 00:08:43]} {[%emt 00:01:46]} 52. g5 {[%clk
00:00:43]} {[%emt 00:00:34]} Kb3 {[%clk 00:08:27]} {[%emt 00:00:45]} 53. Rb8+
{[%clk 00:01:00]} {[%emt 00:00:13]} Kc4 {[%clk 00:07:30]} {[%emt 00:01:27]} 54.
Rc8+ {[%clk 00:01:13]} {[%emt 00:00:18]} Kd3 {[%clk 00:07:52]} {[%emt
00:00:07]} 55. Rd8+ {[%clk 00:01:21]} {[%emt 00:00:23]} Ke2 {[%clk 00:07:31]}
{[%emt 00:00:50]} 56. Rc8 {[%clk 00:01:29]} {[%emt 00:00:22]} Rf3 {[%clk
00:07:02]} {[%emt 00:00:59]} 57. Kf6 {[%clk 00:01:07]} {[%emt 00:00:53]} Rxf4+
{[%clk 00:06:36]} {[%emt 00:00:54]} 58. Kxg6 {[%clk 00:01:30]} {[%emt
00:00:08]} Kd3 {[%clk 00:06:48]} {[%emt 00:00:17]} 59. Kh5 {[%clk 00:00:49]}
{[%emt 00:01:11]} Rf5 {[%clk 00:06:33]} {[%emt 00:00:45]} 60. Kh6 {[%clk
00:00:48]} {[%emt 00:00:28]} c2 {[%clk 00:05:42]} {[%emt 00:01:25]} 61. g6
{[%clk 00:00:46]} {[%emt 00:00:32]} Rf1 {[%clk 00:05:51]} {[%emt 00:00:21]} 62.
Rxc2 {[%clk 00:01:01]} {[%emt 00:00:15]} Kxc2 {[%clk 00:06:13]} {[%emt
00:00:07]} 63. g7 {[%clk 00:01:26]} {[%emt 00:00:05]} Rg1 {[%clk 00:06:33]}
{[%emt 00:00:10]} 64. Kh7 {[%clk 00:01:51]} {[%emt 00:00:06]} Rxg7+ {[%clk
00:06:56]} {[%emt 00:00:07]} 65. Kxg7 {[%clk 00:02:11]} {[%emt 00:00:10]}
1/2-1/2

[Event "The Schackveckan 2023: Göteborg open"]
[Site "Göteborgs schackcentrum, Vegagatan 20, Gothenburg, Sweden"]
[Date "2023.08.12"]
[Round "6.3"]
[White "Degerfeldt, Sven"]
[Black "Bengtsson, Siv"]
[Result "1/2-1/2"]
[TimeControl "15 minutes + 5 seconds per move from move one (Round 1 - 4) / 90 minutes + 30 seconds per move from move one (Round 5 - 8)"]
[WhiteFideId "1717430"]
[BlackFideId "1701673"]
[WhiteElo "1821"]
[BlackElo "2010"]

1. d4 {[%clk 01:30:56]} {[%emt 00:00:03]} Nf6 {[%clk 01:30:56]} {[%emt
00:00:06]} 2. c4 {[%clk 01:30:52]} {[%emt 00:00:33]} e6 {[%clk 01:30:59]}
{[%emt 00:00:27]} 3. Nc3 {[%clk 01:31:02]} {[%emt 00:00:19]} Bb4 {[%clk
01:31:22]} {[%emt 00:00:08]} 4. e3 {[%clk 01:31:26]} {[%emt 00:00:06]} b6
{[%clk 01:28:33]} {[%emt 00:03:18]} 5. Nf3 {[%clk 01:31:46]} {[%emt 00:00:09]}
Bb7 {[%clk 01:28:30]} {[%emt 00:00:33]} 6. Be2 {[%clk 01:32:08]} {[%emt
00:00:09]} O-O {[%clk 01:26:08]} {[%emt 00:02:53]} 7. Bd2 {[%clk 01:32:24]}
{[%emt 00:00:13]} d5 {[%clk 01:25:53]} {[%emt 00:00:46]} 8. a3 {[%clk
01:30:41]} {[%emt 00:02:13]} Be7 {[%clk 01:26:07]} {[%emt 00:00:16]} 9. O-O
{[%clk 01:30:18]} {[%emt 00:00:52]} Nbd7 {[%clk 01:25:07]} {[%emt 00:01:31]} 10.
Rc1 {[%clk 01:24:24]} {[%emt 00:06:22]} c5 {[%clk 01:21:51]} {[%emt 00:03:47]}
11. cxd5 {[%clk 01:17:58]} {[%emt 00:06:56]} cxd4 {[%clk 01:18:27]} {[%emt
00:03:55]} 12. Nxd4 {[%clk 01:17:36]} {[%emt 00:00:50]} Nxd5 {[%clk 01:16:39]}
{[%emt 00:02:20]} 13. Nxd5 {[%clk 01:11:56]} {[%emt 00:06:08]} Bxd5 {[%clk
01:16:39]} {[%emt 00:00:31]} 14. Bf3 {[%clk 01:11:24]} {[%emt 00:01:02]} Ne5
{[%clk 01:09:47]} {[%emt 00:07:22]} 15. Bxd5 {[%clk 01:06:27]} {[%emt
00:05:27]} Qxd5 {[%clk 01:07:59]} {[%emt 00:02:18]} 16. Qe2 {[%clk 01:06:10]}
{[%emt 00:00:47]} Rac8 {[%clk 00:58:37]} {[%emt 00:09:52]} 17. Bc3 {[%clk
01:00:34]} {[%emt 00:06:05]} Rfd8 {[%clk 00:48:47]} {[%emt 00:10:21]} 18. Rfd1
{[%clk 01:00:39]} {[%emt 00:00:25]} Qc4 {[%clk 00:47:00]} {[%emt 00:02:18]} 19.
Qd2 {[%clk 01:00:04]} {[%emt 00:01:04]} Qa4 {[%clk 00:46:00]} {[%emt 00:01:31]}
20. Qe1 {[%clk 00:59:17]} {[%emt 00:01:16]} Bf6 {[%clk 00:42:06]} {[%emt
00:04:25]} 21. f4 {[%clk 00:53:06]} {[%emt 00:06:40]} Ng6 {[%clk 00:40:54]}
{[%emt 00:01:42]} 22. g3 {[%clk 00:47:04]} {[%emt 00:06:31]} h6 {[%clk
00:38:06]} {[%emt 00:03:19]} 23. Qe2 {[%clk 00:41:19]} {[%emt 00:06:15]} Ne7
{[%clk 00:31:04]} {[%emt 00:07:33]} 24. Qb5 {[%clk 00:34:11]} {[%emt 00:07:37]}
Qxb5 {[%clk 00:25:46]} {[%emt 00:05:48]} 25. Nxb5 {[%clk 00:34:32]} {[%emt
00:00:09]} Bxc3 {[%clk 00:25:59]} {[%emt 00:00:17]} 26. Nxc3 {[%clk 00:34:44]}
{[%emt 00:00:19]} 1/2-1/2

[Event "The Schackveckan 2023: Göteborg open"]
[Site "Göteborgs schackcentrum, Vegagatan 20, Gothenburg, Sweden"]
[Date "2023.08.12"]
[Round "6.4"]
[White "Krantz, Martin"]
[Black "Sandberg, Lucas"]
[Result "1-0"]
[TimeControl "15 minutes + 5 seconds per move from move one (Round 1 - 4) / 90 minutes + 30 seconds per move from move one (Round 5 - 8)"]
[WhiteFideId "1724100"]
[BlackFideId "1773712"]
[WhiteElo "2000"]
[BlackElo "1311"]

1. d4 {[%clk 01:30:56]} {[%emt 00:00:03]} Nf6 {[%clk 01:30:57]} {[%emt
00:00:05]} 2. Bf4 {[%clk 01:30:54]} {[%emt 00:00:31]} d5 {[%clk 01:31:21]}
{[%emt 00:00:06]} 3. e3 {[%clk 01:31:09]} {[%emt 00:00:15]} c5 {[%clk
01:31:44]} {[%emt 00:00:07]} 4. Nd2 {[%clk 01:31:23]} {[%emt 00:00:15]} Nc6
{[%clk 01:32:05]} {[%emt 00:00:10]} 5. c3 {[%clk 01:31:45]} {[%emt 00:00:08]}
cxd4 {[%clk 01:31:24]} {[%emt 00:01:11]} 6. exd4 {[%clk 01:32:00]} {[%emt
00:00:15]} g6 {[%emt 00:00:11]} 7. Bd3 {[%clk 01:31:03]} {[%emt 00:01:24]} Bg7
{[%clk 01:31:45]} {[%emt 00:00:30]} 8. Ngf3 {[%clk 01:29:00]} {[%emt 00:02:33]}
O-O {[%clk 01:30:44]} {[%emt 00:01:31]} 9. h3 {[%clk 01:27:46]} {[%emt
00:01:43]} Nd7 {[%clk 01:29:32]} {[%emt 00:01:43]} 10. O-O {[%clk 01:26:19]}
{[%emt 00:01:57]} e5 {[%clk 01:29:36]} {[%emt 00:00:26]} 11. dxe5 {[%clk
01:26:40]} {[%emt 00:00:10]} Ndxe5 {[%clk 01:30:04]} {[%emt 00:00:02]} 12. Nxe5
{[%clk 01:23:15]} {[%emt 00:03:55]} Nxe5 {[%clk 01:30:29]} {[%emt 00:00:05]} 13.
Bxe5 {[%clk 01:22:11]} {[%emt 00:01:33]} Bxe5 {[%clk 01:29:29]} {[%emt
00:01:31]} 14. Nf3 {[%clk 01:22:28]} {[%emt 00:00:13]} Bg7 {[%clk 01:29:52]}
{[%emt 00:00:06]} 15. Bc2 {[%clk 01:21:32]} {[%emt 00:01:26]} Be6 {[%clk
01:27:28]} {[%emt 00:02:54]} 16. Nd4 {[%clk 01:19:34]} {[%emt 00:02:29]} Bxd4
{[%clk 01:26:44]} {[%emt 00:01:13]} 17. Qxd4 {[%clk 01:19:38]} {[%emt
00:00:26]} Qb6 {[%clk 01:27:05]} {[%emt 00:00:09]} 18. Qxb6 {[%clk 01:18:13]}
{[%emt 00:01:56]} axb6 {[%clk 01:27:33]} {[%emt 00:00:03]} 19. Bb3 {[%clk
01:17:07]} {[%emt 00:01:34]} Rfd8 {[%clk 01:25:45]} {[%emt 00:02:18]} 20. Rfd1
{[%clk 01:17:22]} {[%emt 00:00:15]} Rd7 {[%clk 01:24:44]} {[%emt 00:01:32]} 21.
Rd4 {[%clk 01:15:35]} {[%emt 00:02:16]} Rad8 {[%clk 01:24:26]} {[%emt
00:00:48]} 22. Rad1 {[%clk 01:15:10]} {[%emt 00:00:54]} Kf8 {[%clk 01:24:21]}
{[%emt 00:00:36]} 23. h4 {[%clk 01:08:36]} {[%emt 00:07:03]} h5 {[%clk
01:24:11]} {[%emt 00:00:41]} 24. f3 {[%clk 01:08:50]} {[%emt 00:00:15]} Ke7
{[%clk 01:23:48]} {[%emt 00:00:55]} 25. Kf2 {[%clk 01:08:41]} {[%emt 00:00:38]}
Rd6 {[%clk 01:22:35]} {[%emt 00:01:43]} 26. Ke3 {[%clk 01:08:04]} {[%emt
00:01:07]} Kf6 {[%clk 01:19:37]} {[%emt 00:03:28]} 27. Kf4 {[%clk 01:08:12]}
{[%emt 00:00:21]} R6d7 {[%clk 01:19:37]} {[%emt 00:00:31]} 28. g4 {[%clk
01:05:40]} {[%emt 00:03:02]} hxg4 {[%clk 01:17:13]} {[%emt 00:02:55]} 29. fxg4
{[%clk 01:06:00]} {[%emt 00:00:09]} Kg7 {[%clk 01:16:38]} {[%emt 00:01:05]} 30.
Re1 {[%clk 01:02:47]} {[%emt 00:03:42]} Rd6 {[%clk 01:14:51]} {[%emt 00:02:18]}
31. Ba4 {[%clk 01:02:01]} {[%emt 00:01:16]} f6 {[%clk 01:13:52]} {[%emt
00:01:29]} 32. Red1 {[%clk 01:00:06]} {[%emt 00:02:22]} Kf7 {[%clk 01:08:03]}
{[%emt 00:06:22]} 33. a3 {[%clk 00:59:30]} {[%emt 00:01:05]} Rh8 {[%clk
01:07:40]} {[%emt 00:00:54]} 34. Kg3 {[%clk 00:53:38]} {[%emt 00:06:22]} Rhd8
{[%clk 01:05:45]} {[%emt 00:02:26]} 35. Bb3 {[%clk 00:51:31]} {[%emt 00:02:36]}
Ke7 {[%clk 01:05:06]} {[%emt 00:01:08]} 36. Ba2 {[%clk 00:50:30]} {[%emt
00:01:32]} Bf7 {[%clk 01:04:11]} {[%emt 00:01:26]} 37. Bb1 {[%clk 00:49:52]}
{[%emt 00:01:07]} Re6 {[%clk 00:57:30]} {[%emt 00:07:11]} 38. Kf3 {[%clk
00:47:48]} {[%emt 00:02:33]} Re5 {[%clk 00:56:09]} {[%emt 00:01:52]} 39. Rb4
{[%clk 00:45:20]} {[%emt 00:02:57]} Rd6 {[%clk 00:56:16]} {[%emt 00:00:24]} 40.
Rbd4 {[%clk 00:43:41]} {[%emt 00:02:09]} Rde6 {[%clk 00:54:54]} {[%emt
00:01:52]} 41. Ba2 {[%clk 00:37:29]} {[%emt 00:06:43]} Re3+ {[%clk 00:53:47]}
{[%emt 00:01:37]} 42. Kf4 {[%clk 00:36:25]} {[%emt 00:01:33]} R6e4+ {[%clk
00:54:10]} {[%emt 00:00:07]} 43. Rxe4+ {[%clk 00:36:24]} {[%emt 00:00:31]}
Rxe4+ {[%clk 00:54:21]} {[%emt 00:00:19]} 44. Kf3 {[%clk 00:36:13]} {[%emt
00:00:40]} Kd6 {[%clk 00:53:56]} {[%emt 00:00:55]} 45. c4 {[%clk 00:34:53]}
{[%emt 00:01:51]} f5 {[%clk 00:54:03]} {[%emt 00:00:24]} 46. gxf5 {[%clk
00:34:19]} {[%emt 00:01:04]} gxf5 {[%clk 00:54:29]} {[%emt 00:00:06]} 47. Kg3
{[%clk 00:32:38]} {[%emt 00:02:05]} d4 {[%clk 00:53:41]} {[%emt 00:01:21]} 48.
c5+ {[%clk 00:32:10]} {[%emt 00:00:58]} Ke7 {[%clk 00:53:00]} {[%emt 00:01:11]}
49. Bxf7 {[%clk 00:32:26]} {[%emt 00:00:14]} Kxf7 {[%clk 00:53:29]} {[%emt
00:00:01]} 50. cxb6 {[%clk 00:31:55]} {[%emt 00:01:01]} Re3+ {[%clk 00:52:28]}
{[%emt 00:01:32]} 51. Kf4 {[%clk 00:31:26]} {[%emt 00:00:57]} Rb3 {[%emt
00:00:06]} 52. Rxd4 {[%clk 00:29:57]} {[%emt 00:01:58]} Rxb2 {[%clk 00:51:11]}
{[%emt 00:02:14]} 53. Rd7+ {[%clk 00:28:33]} {[%emt 00:01:53]} Kg6 {[%clk
00:47:57]} {[%emt 00:03:44]} 54. Rxb7 {[%clk 00:28:47]} {[%emt 00:00:17]} Rb3
{[%clk 00:48:21]} {[%emt 00:00:06]} 55. h5+ {[%clk 00:26:31]} {[%emt 00:02:45]}
Kxh5 {[%clk 00:47:51]} 56. Kxf5 {[%clk 00:26:51]} {[%emt 00:01:10]} Rf3+ {[%emt
00:00:41]} 57. Ke6 Rxa3 {[%clk 00:48:14]} {[%emt 00:00:09]} 58. Kd6 {[%clk
00:27:03]} {[%emt 00:00:35]} Rc3 {[%clk 00:47:54]} {[%emt 00:00:50]} 59. Rc7
{[%clk 00:27:16]} {[%emt 00:00:17]} 1-0

[Event "The Schackveckan 2023: Göteborg open"]
[Site "Göteborgs schackcentrum, Vegagatan 20, Gothenburg, Sweden"]
[Date "2023.08.12"]
[Round "6.5"]
[White "Granath, Jonas"]
[Black "Eriksson, Kristian"]
[Result "1/2-1/2"]
[TimeControl "15 minutes + 5 seconds per move from move one (Round 1 - 4) / 90 minutes + 30 seconds per move from move one (Round 5 - 8)"]
[WhiteFideId "1761013"]
[BlackFideId "1705172"]
[WhiteElo "1896"]
[BlackElo "2057"]

1. e4 {[%clk 01:30:57]} {[%emt 00:00:02]} e5 {[%clk 01:30:50]} {[%emt
00:00:10]} 2. Nf3 {[%clk 01:31:20]} {[%emt 00:00:07]} Nc6 {[%clk 01:31:10]}
{[%emt 00:00:10]} 3. Bc4 {[%clk 01:31:43]} {[%emt 00:00:07]} Nf6 {[%clk
01:31:18]} {[%emt 00:00:21]} 4. d4 {[%clk 01:32:01]} {[%emt 00:00:13]} exd4
{[%clk 01:31:21]} {[%emt 00:00:27]} 5. O-O {[%clk 01:32:19]} {[%emt 00:00:12]}
Nxe4 {[%clk 01:30:18]} {[%emt 00:01:32]} 6. Re1 {[%clk 01:32:42]} {[%emt
00:00:07]} d5 {[%clk 01:30:30]} {[%emt 00:00:18]} 7. Bxd5 {[%clk 01:33:08]}
{[%emt 00:00:05]} Qxd5 {[%clk 01:30:55]} {[%emt 00:00:05]} 8. Nc3 {[%clk
01:33:32]} {[%emt 00:00:05]} Qa5 {[%clk 01:31:09]} {[%emt 00:00:16]} 9. Nxe4
{[%clk 01:33:52]} {[%emt 00:00:11]} Be6 {[%clk 01:31:04]} {[%emt 00:00:33]} 10.
Neg5 {[%clk 01:34:06]} {[%emt 00:00:17]} O-O-O {[%clk 01:31:06]} {[%emt
00:00:28]} 11. Nxe6 {[%clk 01:34:30]} {[%emt 00:00:07]} fxe6 {[%clk 01:31:32]}
{[%emt 00:00:05]} 12. Rxe6 {[%clk 01:34:53]} {[%emt 00:00:06]} Bd6 {[%clk
01:29:56]} {[%emt 00:02:05]} 13. Bg5 {[%clk 01:35:10]} {[%emt 00:00:13]} Rdf8
{[%clk 01:28:14]} {[%emt 00:02:12]} 14. Qe2 {[%clk 01:29:48]} {[%emt 00:05:52]}
h6 {[%clk 01:25:26]} {[%emt 00:03:19]} 15. Bh4 {[%clk 01:18:18]} {[%emt
00:12:00]} g5 {[%clk 01:20:28]} {[%emt 00:05:28]} 16. Bg3 {[%clk 01:18:27]}
{[%emt 00:00:21]} Bxg3 {[%clk 01:15:51]} {[%emt 00:05:05]} 17. hxg3 {[%clk
01:18:18]} {[%emt 00:00:40]} Rd8 {[%clk 01:09:42]} {[%emt 00:06:39]} 18. Ne5
{[%clk 00:51:32]} {[%emt 00:27:17]} Nxe5 {[%clk 01:05:58]} {[%emt 00:04:14]} 19.
Rxe5 {[%clk 00:51:42]} {[%emt 00:00:20]} Qb6 {[%clk 00:58:22]} {[%emt
00:08:05]} 20. b3 {[%clk 00:45:32]} {[%emt 00:06:40]} Kb8 {[%clk 00:56:30]}
{[%emt 00:02:23]} 21. Re1 {[%clk 00:45:12]} {[%emt 00:00:49]} a6 {[%clk
00:54:56]} {[%emt 00:02:05]} 22. Re6 {[%clk 00:40:49]} {[%emt 00:04:53]} Qa5
{[%clk 00:51:08]} {[%emt 00:04:17]} 23. a4 {[%clk 00:35:17]} {[%emt 00:06:02]}
Qb4 {[%clk 00:39:11]} {[%emt 00:12:27]} 24. Qd3 {[%clk 00:25:38]} {[%emt
00:10:10]} Rd6 {[%clk 00:36:35]} {[%emt 00:03:05]} 25. Re8+ {[%clk 00:17:23]}
{[%emt 00:08:45]} Rxe8 {[%clk 00:35:29]} {[%emt 00:01:36]} 26. Rxe8+ {[%clk
00:17:43]} {[%emt 00:00:11]} Ka7 {[%clk 00:35:55]} {[%emt 00:00:03]} 27. Re4
{[%clk 00:16:13]} {[%emt 00:02:00]} 1/2-1/2

[Event "The Schackveckan 2023: Göteborg open"]
[Site "Göteborgs schackcentrum, Vegagatan 20, Gothenburg, Sweden"]
[Date "2023.08.12"]
[Round "6.6"]
[White "Wengholm, Anders"]
[Black "Yang, Mandi"]
[Result "1/2-1/2"]
[TimeControl "15 minutes + 5 seconds per move from move one (Round 1 - 4) / 90 minutes + 30 seconds per move from move one (Round 5 - 8)"]
[WhiteFideId "1704818"]
[BlackFideId "1774778"]
[WhiteElo "2155"]
[BlackElo "1457"]

1. Nf3 {[%clk 01:30:57]} {[%emt 00:00:02]} c5 {[%clk 01:30:51]} {[%emt
00:00:10]} 2. c4 {[%clk 01:31:22]} {[%emt 00:00:05]} Nc6 {[%clk 01:31:06]}
{[%emt 00:00:16]} 3. Nc3 {[%clk 01:31:43]} {[%emt 00:00:09]} Nf6 {[%clk
01:31:29]} {[%emt 00:00:06]} 4. g3 {[%clk 01:32:00]} {[%emt 00:00:12]} g6
{[%clk 01:31:55]} {[%emt 00:00:05]} 5. Bg2 {[%clk 01:32:25]} {[%emt 00:00:05]}
Bg7 {[%clk 01:32:19]} {[%emt 00:00:06]} 6. d4 {[%clk 01:32:50]} {[%emt
00:00:05]} cxd4 {[%clk 01:32:36]} {[%emt 00:00:13]} 7. Nxd4 {[%clk 01:33:18]}
{[%emt 00:00:02]} Nxd4 {[%clk 01:32:52]} {[%emt 00:00:14]} 8. Qxd4 {[%clk
01:33:45]} {[%emt 00:00:03]} d6 {[%clk 01:33:14]} {[%emt 00:00:08]} 9. O-O
{[%clk 01:33:55]} {[%emt 00:00:20]} O-O {[%clk 01:33:39]} {[%emt 00:00:05]} 10.
Qd3 {[%clk 01:33:47]} {[%emt 00:00:38]} Bf5 {[%clk 01:34:02]} {[%emt 00:00:08]}
11. e4 {[%clk 01:34:05]} {[%emt 00:00:12]} Be6 {[%clk 01:34:04]} {[%emt
00:00:28]} 12. Bd2 {[%clk 01:33:23]} {[%emt 00:01:11]} Rc8 {[%clk 01:32:04]}
{[%emt 00:02:31]} 13. b3 {[%clk 01:33:42]} {[%emt 00:00:11]} Nd7 {[%clk
01:30:57]} {[%emt 00:01:37]} 14. Rac1 {[%clk 01:33:53]} {[%emt 00:00:18]} Nc5
{[%clk 01:29:53]} {[%emt 00:01:35]} 15. Qe2 {[%clk 01:33:34]} {[%emt 00:00:48]}
a6 {[%clk 01:26:06]} {[%emt 00:04:17]} 16. Nd5 {[%clk 01:25:23]} {[%emt
00:08:41]} Bxd5 {[%clk 01:25:22]} {[%emt 00:01:14]} 17. exd5 {[%clk 01:25:34]}
{[%emt 00:00:19]} Qd7 {[%clk 01:22:34]} {[%emt 00:03:18]} 18. h4 {[%clk
01:23:41]} {[%emt 00:02:23]} b5 {[%clk 01:22:20]} {[%emt 00:00:44]} 19. h5
{[%clk 01:22:01]} {[%emt 00:02:10]} bxc4 {[%clk 01:22:35]} {[%emt 00:00:16]} 20.
Rxc4 {[%clk 01:22:07]} {[%emt 00:00:24]} Qb7 {[%clk 01:20:59]} {[%emt
00:02:05]} 21. Rfc1 {[%clk 01:17:59]} {[%emt 00:04:39]} Bf6 {[%clk 01:15:15]}
{[%emt 00:06:13]} 22. Ba5 {[%clk 00:46:38]} {[%emt 00:31:51]} Qb5 {[%clk
01:14:41]} {[%emt 00:01:04]} 23. b4 {[%clk 00:46:38]} {[%emt 00:00:30]} Nb7
{[%clk 01:14:28]} {[%emt 00:00:44]} 24. Bf1 {[%clk 00:30:17]} {[%emt 00:16:50]}
1/2-1/2